bitfinex/quotes_BTCUSD_20241128
["timestamp","ask_amount","ask_price","bid_price","bid_amount"]
[1732779515799,0.104544,95653.0,95652.0,0.003723]
[1732779516269,0.10284521,95658.0,95652.0,0.002723]
[1732779516486,0.209083,95656.0,95652.0,0.002723]
[1732779516736,0.10284521,95658.0,95652.0,0.002723]
[1732779516940,0.104541,95656.0,95652.0,0.005723]
[1732779517159,0.104541,95656.0,95652.0,0.002723]
[1732779517428,0.104542,95655.0,95652.0,0.006723]
[1732779517843,0.10284521,95658.0,95652.0,0.001723]
[1732779518275,0.10284521,95658.0,95652.0,0.002723]
[1732779518497,0.209082,95656.0,95652.0,0.002723]
[1732779518731,0.104543,95654.0,95652.0,0.001723]
[1732779518958,0.104543,95654.0,95652.0,0.005723]
[1732779519167,0.104543,95654.0,95652.0,0.006723]
[1732779519621,0.104543,95654.0,95652.0,0.005723]
[1732779520072,0.104543,95654.0,95652.0,0.007723]
[1732779520296,0.104543,95654.0,95652.0,0.003723]
[1732779520548,0.209082,95656.0,95652.0,0.006723]
[1732779520780,0.104544,95653.0,95652.0,0.006723]
[1732779521010,0.104544,95653.0,95652.0,0.011723]
[1732779521466,0.184244,95653.0,95652.0,0.009723]
[1732779521678,0.28847505,95653.0,95652.0,0.009723]
[1732779521893,0.28708921,95653.0,95652.0,0.003723]
[1732779522102,0.28708921,95653.0,95652.0,0.009723]
[1732779522326,0.28808921,95653.0,95652.0,0.009723]
[1732779522534,0.28808921,95653.0,95652.0,0.007723]
[1732779523205,0.28808921,95653.0,95652.0,0.009723]
[1732779523425,0.28108921,95653.0,95652.0,0.003723]
[1732779523885,0.28108921,95653.0,95652.0,0.008723]
[1732779524531,0.28108921,95653.0,95652.0,0.010723]
[1732779524746,0.28108921,95653.0,95652.0,0.008723]
[1732779525389,0.28108921,95653.0,95652.0,0.009723]
[1732779525832,0.20138921,95653.0,95652.0,0.009723]
[1732779526684,0.20138921,95653.0,95652.0,0.01756331]
[1732779529963,0.21775522,95653.0,95652.0,0.01756331]
[1732779533403,0.21775522,95653.0,95652.0,0.01056331]
[1732779533642,0.21875522,95653.0,95652.0,0.01056331]
[1732779533850,0.21875522,95653.0,95652.0,0.00956331]
[1732779534296,0.21975522,95653.0,95652.0,0.00956331]
[1732779534515,0.21875522,95653.0,95652.0,0.00956331]
[1732779534734,0.23912793,95653.0,95652.0,0.01156331]
[1732779534924,0.21775522,95653.0,95652.0,0.01156331]
[1732779535187,0.21775522,95653.0,95652.0,0.01256331]
[1732779535441,0.21861742,95653.0,95652.0,0.004723]
[1732779535707,0.21861742,95653.0,95652.0,0.01256182]
[1732779536157,0.21861742,95653.0,95652.0,0.004723]
[1732779536827,0.21861742,95653.0,95652.0,0.01256136]
[1732779537304,0.21861742,95653.0,95652.0,0.004723]
[1732779537729,0.21861742,95653.0,95652.0,0.003723]
[1732779538013,0.21861742,95653.0,95652.0,0.00956102]
[1732779538243,0.21261742,95653.0,95652.0,0.001723]
[1732779538449,0.21261742,95653.0,95652.0,0.002723]
[1732779539684,0.21261742,95653.0,95652.0,0.01056043]
[1732779539906,0.21261742,95653.0,95652.0,0.002723]
[1732779540130,0.01722821,95653.0,95652.0,0.002723]
[1732779540332,0.01722821,95653.0,95652.0,0.09669476]
[1732779541052,0.12177221,95653.0,95652.0,0.09669476]
[1732779541519,0.12177221,95653.0,95652.0,0.002723]
[1732779541743,0.12177221,95653.0,95652.0,0.09676887]
[1732779542400,0.12177221,95653.0,95652.0,0.002723]
[1732779543340,0.12177221,95653.0,95652.0,0.09678311]
[1732779543769,0.14219384,95653.0,95652.0,0.09678311]
[1732779544510,0.12177221,95653.0,95652.0,0.09678311]
[1732779544755,0.27061742,95653.0,95652.0,0.002723]
[1732779545013,0.30324945,95653.0,95652.0,0.002723]
[1732779545485,0.37944945,95653.0,95652.0,0.002723]
[1732779545773,0.52944945,95653.0,95652.0,0.002723]
[1732779546013,0.62341995,95653.0,95652.0,0.002723]
[1732779546251,0.67031971,95653.0,95652.0,0.001723]
[1732779546471,0.67031976,95653.0,95652.0,0.001723]
[1732779546710,1.37431976,95653.0,95652.0,0.001723]
[1732779547136,1.37831976,95653.0,95652.0,0.001723]
[1732779547325,1.23444945,95653.0,95652.0,0.001723]
[1732779547631,1.23844945,95653.0,95652.0,0.002723]
[1732779547876,1.24444945,95653.0,95652.0,0.002723]
[1732779553297,1.23844945,95653.0,95652.0,0.002723]
[1732779553515,1.26144945,95653.0,95652.0,0.002723]
[1732779553742,1.2825925,95653.0,95652.0,0.002723]
[1732779554745,0.5595925,95653.0,95652.0,0.002723]
[1732779555210,0.52696047,95653.0,95652.0,0.002723]
[1732779555666,0.45076047,95653.0,95652.0,0.002723]
[1732779558767,0.42961742,95653.0,95652.0,0.002723]
[1732779564020,0.40426744,95653.0,95652.0,0.002723]
[1732779568315,0.39826744,95653.0,95652.0,0.002723]
[1732779568523,0.39390143,95653.0,95652.0,0.002723]
[1732779568807,0.37325141,95653.0,95652.0,0.002723]
[1732779572786,0.22325141,95653.0,95652.0,0.002723]
[1732779574886,0.11870741,95653.0,95652.0,0.080723]
[1732779575346,0.22325141,95653.0,95652.0,0.080723]
[1732779575570,0.11870741,95653.0,95652.0,0.080723]
[1732779575787,0.21925141,95653.0,95652.0,0.080723]
[1732779576220,0.21925141,95653.0,95652.0,0.082723]
[1732779576718,0.20825141,95653.0,95652.0,0.081723]
[1732779576954,0.20925141,95653.0,95652.0,0.086723]
[1732779578980,0.20925141,95653.0,95652.0,0.008723]
[1732779579413,0.25515141,95653.0,95652.0,0.008723]
[1732779581681,0.20925141,95653.0,95652.0,0.008723]
[1732779583408,0.20325141,95653.0,95652.0,0.008723]
[1732779591471,0.09870741,95653.0,95652.0,0.086723]
[1732779591941,0.20325141,95653.0,95652.0,0.086723]
[1732779593287,0.20325141,95653.0,95652.0,0.008723]
[1732779593764,0.23727438,95653.0,95652.0,0.008723]
[1732779593986,0.23588854,95653.0,95652.0,0.008723]
[1732779594655,0.25628435,95653.0,95652.0,0.008723]
[1732779594884,0.25714655,95653.0,95652.0,0.008723]
[1732779595760,0.25614655,95653.0,95652.0,0.003723]
[1732779595985,0.25614655,95653.0,95652.0,0.005723]
[1732779596220,0.25614655,95653.0,95652.0,0.003723]
[1732779596662,0.25914655,95653.0,95652.0,0.001723]
[1732779597314,0.25614655,95653.0,95652.0,0.001723]
[1732779597558,0.30204655,95653.0,95652.0,0.001723]
[1732779597796,0.38044655,95653.0,95652.0,0.001723]
[1732779598007,0.38344655,95653.0,95652.0,0.001723]
[1732779598240,0.37744655,95653.0,95652.0,0.001723]
[1732779598454,0.39381484,95653.0,95652.0,0.001723]
[1732779598921,0.52741903,95653.0,95652.0,0.001723]
[1732779599373,0.53141903,95653.0,95652.0,0.001723]
[1732779599812,0.53541903,95653.0,95652.0,0.001723]
[1732779600239,0.53141903,95653.0,95652.0,0.001723]
[1732779600650,0.53541903,95653.0,95652.0,0.001723]
[1732779601516,1.23541903,95653.0,95652.0,0.001723]
[1732779603886,1.2560459,95653.0,95652.0,0.001723]
[1732779605004,0.5560459,95653.0,95652.0,0.001723]
[1732779606932,0.4317459,95653.0,95652.0,0.001723]
[1732779607215,0.39910877,95653.0,95652.0,0.001723]
[1732779607627,0.24910877,95653.0,95652.0,0.001723]
[1732779608673,0.23410877,95653.0,95652.0,0.001723]
[1732779609097,0.23510877,95653.0,95652.0,0.001723]
[1732779609353,0.23610877,95653.0,95652.0,0.001723]
[1732779609570,0.23410877,95653.0,95652.0,0.001723]
[1732779609999,0.23510877,95653.0,95652.0,0.001723]
[1732779610423,0.23610877,95653.0,95652.0,0.001723]
[1732779610636,0.23710877,95653.0,95652.0,0.001723]
[1732779613019,0.22074048,95653.0,95652.0,0.001723]
[1732779613245,0.21474048,95653.0,95652.0,0.001723]
[1732779613454,0.21374048,95653.0,95652.0,0.001723]
[1732779613893,0.19511361,95653.0,95652.0,0.001723]
[1732779614752,0.19311361,95653.0,95652.0,0.001723]
[1732779615176,0.31749945,95653.0,95652.0,0.001723]
[1732779615419,0.31611361,95653.0,95652.0,0.001723]
[1732779617265,0.31411361,95653.0,95652.0,0.001723]
[1732779617737,0.31211361,95653.0,95652.0,0.001723]
[1732779617953,0.32848157,95653.0,95652.0,0.001723]
[1732779618175,0.33048157,95653.0,95652.0,0.001723]
[1732779618950,0.33148157,95653.0,95652.0,0.001723]
[1732779620269,0.35241827,95653.0,95652.0,0.001723]
[1732779620943,0.38502572,95653.0,95652.0,0.001723]
[1732779623193,0.26402572,95653.0,95652.0,0.001723]
[1732779623853,0.24308902,95653.0,95652.0,0.001723]
[1732779624964,0.28968902,95653.0,95652.0,0.001723]
[1732779628236,0.28368902,95653.0,95652.0,0.001723]
[1732779628659,0.28268902,95653.0,95652.0,0.001723]
[1732779628881,0.23408902,95653.0,95652.0,0.001723]
[1732779629101,0.25678962,95653.0,95652.0,0.001723]
[1732779629338,0.22818217,95653.0,95652.0,0.001723]
[1732779629559,0.22218217,95653.0,95652.0,0.001723]
[1732779629768,0.20581421,95653.0,95652.0,0.001723]
[1732779629977,0.21081421,95653.0,95652.0,0.001723]
[1732779630640,0.20581421,95653.0,95652.0,0.001723]
[1732779631721,0.21381421,95653.0,95652.0,0.001723]
[1732779631977,0.21581421,95653.0,95652.0,0.001723]
[1732779632444,0.21381421,95653.0,95652.0,0.001723]
[1732779634039,0.19311361,95653.0,95652.0,0.001723]
[1732779635384,0.19449945,95653.0,95652.0,0.001723]
[1732779635883,0.27689945,95653.0,95652.0,0.001723]
[1732779636128,0.30214244,95653.0,95652.0,0.001723]
[1732779636352,0.30414244,95653.0,95652.0,0.001723]
[1732779636579,0.30214244,95653.0,95652.0,0.001723]
[1732779637031,0.22274244,95653.0,95652.0,0.001723]
[1732779637466,0.19011361,95653.0,95652.0,0.001723]
[1732779637723,0.22413709,95653.0,95652.0,0.001723]
[1732779637940,0.22275125,95653.0,95652.0,0.001723]
[1732779638170,0.22675125,95653.0,95652.0,0.001723]
[1732779640006,0.24791615,95653.0,95652.0,0.001723]
[1732779640685,0.24793086,95653.0,95652.0,0.001723]
[1732779643379,0.24193086,95653.0,95652.0,0.001723]
[1732779644082,0.22076596,95653.0,95652.0,0.001723]
[1732779650865,0.24124886,95653.0,95652.0,0.001723]
[1732779651578,0.22076596,95653.0,95652.0,0.001723]
[1732779652247,0.18811361,95653.0,95652.0,0.001723]
[1732779657117,0.18511361,95653.0,95652.0,0.001723]
[1732779657344,0.17911361,95653.0,95652.0,0.001723]
[1732779657788,0.18011361,95653.0,95652.0,0.001723]
[1732779658238,0.17411361,95653.0,95652.0,0.001723]
[1732779659369,0.17549945,95653.0,95652.0,0.001723]
[1732779660717,0.40546325,95653.0,95652.0,0.001723]
[1732779660956,0.48327741,95653.0,95652.0,0.001723]
[1732779661662,0.48227741,95653.0,95652.0,0.001723]
[1732779661884,0.50827741,95653.0,95652.0,0.001723]
[1732779662118,0.7289206,95653.0,95652.0,0.001723]
[1732779662331,0.7379206,95653.0,95652.0,0.001723]
[1732779662551,0.54980154,95653.0,95652.0,0.001723]
[1732779662780,0.53880154,95653.0,95652.0,0.001723]
[1732779663021,0.53880154,95653.0,95652.0,1e-06]
[1732779663253,0.55780154,95653.0,95652.0,1e-06]
[1732779663925,0.56680154,95653.0,95652.0,1e-06]
[1732779664161,0.60540151,95653.0,95652.0,1e-06]
[1732779665315,0.59140151,95653.0,95652.0,1e-06]
[1732779665781,0.60940151,95653.0,95652.0,1e-06]
[1732779666013,0.60940151,95653.0,95626.0,0.0017236]
[1732779666014,0.381072,95627.0,95626.0,0.0017236]
[1732779666231,0.48391721,95627.0,95626.0,0.0017236]
[1732779668075,0.48791721,95627.0,95626.0,0.0017236]
[1732779668317,0.48991721,95627.0,95626.0,0.0017236]
[1732779673205,0.48391721,95627.0,95626.0,0.0017236]
[1732779673869,0.48191721,95627.0,95626.0,0.0017236]
[1732779674328,0.48591721,95627.0,95626.0,0.0017236]
[1732779674569,0.48191721,95627.0,95626.0,0.0017236]
[1732779674795,0.48591721,95627.0,95626.0,0.0017236]
[1732779675239,0.48991721,95627.0,95626.0,0.0017236]
[1732779677264,0.39134521,95627.0,95626.0,0.0017236]
[1732779680056,0.41203811,95627.0,95626.0,0.0017236]
[1732779684514,0.38734521,95627.0,95626.0,0.0017236]
[1732779684726,0.37934521,95627.0,95626.0,0.0017236]
[1732779684940,0.38334521,95627.0,95626.0,0.0017236]
[1732779685370,0.39134521,95627.0,95626.0,0.0017236]
[1732779688236,0.38534521,95627.0,95626.0,0.0017236]
[1732779688467,0.37734521,95627.0,95626.0,0.0017236]
[1732779688686,0.37334521,95627.0,95626.0,0.0017236]
[1732779688909,0.30314521,95627.0,95626.0,0.0017236]
[1732779689605,0.32456018,95627.0,95626.0,0.0017236]
[1732779689830,0.31556018,95627.0,95626.0,0.0017236]
[1732779690046,0.32156018,95627.0,95626.0,0.0017236]
[1732779690494,0.33793402,95627.0,95626.0,0.0017236]
[1732779690716,0.36449207,95627.0,95626.0,0.0017236]
[1732779690934,0.33593402,95627.0,95626.0,0.0017236]
[1732779691395,0.36449262,95627.0,95626.0,0.0017236]
[1732779691614,0.33193402,95627.0,95626.0,0.0017236]
[1732779691825,0.37750362,95627.0,95626.0,0.0017236]
[1732779692084,0.36850362,95627.0,95626.0,0.0017236]
[1732779692313,0.37550362,95627.0,95626.0,0.0017236]
[1732779693221,0.36850362,95627.0,95626.0,0.0017236]
[1732779693442,0.37150362,95627.0,95626.0,0.0017236]
[1732779693656,0.37550362,95627.0,95626.0,0.0017236]
[1732779694084,0.35408865,95627.0,95626.0,0.0017236]
[1732779694303,0.35008865,95627.0,95626.0,0.0017236]
[1732779694734,0.34708865,95627.0,95626.0,0.0017236]
[1732779695173,0.35008865,95627.0,95626.0,0.0017236]
[1732779695807,0.34308865,95627.0,95626.0,0.0017236]
[1732779696278,0.35008865,95627.0,95626.0,0.0017236]
[1732779696488,0.34308865,95627.0,95626.0,0.0017236]
[1732779697203,0.34708865,95627.0,95626.0,0.0017236]
[1732779697688,0.35008865,95627.0,95626.0,0.0017236]
[1732779697929,0.35095105,95627.0,95626.0,0.0017236]
[1732779698142,0.34795105,95627.0,95626.0,0.0017236]
[1732779698574,0.35095105,95627.0,95626.0,0.0017236]
[1732779699006,0.36195105,95627.0,95626.0,0.0017236]
[1732779699459,0.34795105,95627.0,95626.0,0.0017236]
[1732779699689,0.35495105,95627.0,95626.0,0.0017236]
[1732779700131,0.35095105,95627.0,95626.0,0.0017236]
[1732779700359,0.37190677,95627.0,95626.0,0.0017236]
[1732779700568,0.37590677,95627.0,95626.0,0.0017236]
[1732779701014,0.37190677,95627.0,95626.0,0.0017236]
[1732779701479,0.38290677,95627.0,95626.0,0.0017236]
[1732779701712,0.36890677,95627.0,95626.0,0.0017236]
[1732779701937,0.37190677,95627.0,95626.0,0.0017236]
[1732779702644,0.37890677,95627.0,95626.0,0.0017236]
[1732779703294,0.37290677,95627.0,95626.0,0.0017236]
[1732779704041,1.07690677,95627.0,95626.0,0.0017236]
[1732779704266,1.05595105,95627.0,95626.0,0.0017236]
[1732779704500,1.05195105,95627.0,95626.0,0.0017236]
[1732779704942,1.05695105,95627.0,95626.0,0.0017236]
[1732779705129,1.04295105,95627.0,95626.0,0.0017236]
[1732779705391,1.04695105,95627.0,95626.0,0.0017236]
[1732779705601,1.03795105,95627.0,95626.0,0.0017236]
[1732779705846,1.04195105,95627.0,95626.0,0.0017236]
[1732779706067,1.04895105,95627.0,95626.0,0.0017236]
[1732779706291,1.04195105,95627.0,95626.0,0.0017236]
[1732779706500,1.04895105,95627.0,95626.0,0.0017236]
[1732779707172,1.04495105,95627.0,95626.0,0.0017236]
[1732779707420,1.04895105,95627.0,95626.0,0.0017236]
[1732779708547,1.04495105,95627.0,95626.0,0.0017236]
[1732779708755,1.02757721,95627.0,95626.0,0.0017236]
[1732779708983,1.04395115,95627.0,95626.0,0.0017236]
[1732779709192,1.07365676,95627.0,95626.0,0.0017236]
[1732779709430,1.06465676,95627.0,95626.0,0.0017236]
[1732779709695,1.12025495,95627.0,95626.0,0.0017236]
[1732779709913,0.048432,95627.0,95626.0,0.1318236]
[1732779710132,0.0098624,95627.0,95626.0,0.28052355]
[1732779710346,0.0188624,95627.0,95626.0,0.74441112]
[1732779710571,0.0148624,95627.0,95626.0,0.50936232]
[1732779710801,0.0058624,95627.0,95626.0,0.48897479]
[1732779711013,0.0008624,95627.0,95626.0,0.69724628]
[1732779711255,0.0048624,95627.0,95626.0,0.63775286]
[1732779711487,0.0048624,95627.0,95626.0,0.14971527]
[1732779711700,0.0008624,95627.0,95626.0,0.14971527]
[1732779711913,0.0098624,95627.0,95626.0,0.29066553]
[1732779712124,0.0098624,95627.0,95626.0,0.2436489]
[1732779712352,0.0008624,95627.0,95626.0,0.2436489]
[1732779712614,0.0008624,95627.0,95626.0,0.14288746]
[1732779713266,0.0008624,95627.0,95626.0,0.14188746]
[1732779713688,0.0008624,95627.0,95626.0,0.14488746]
[1732779714134,0.0008624,95627.0,95626.0,0.14388746]
[1732779715050,0.0008624,95627.0,95626.0,0.14188746]
[1732779715304,0.0008624,95627.0,95626.0,0.14388746]
[1732779715305,0.0018624,95627.0,95626.0,0.14388746]
[1732779715525,0.0018624,95627.0,95626.0,0.14288746]
[1732779715971,0.0028624,95627.0,95626.0,0.14388746]
[1732779716623,0.0008624,95627.0,95626.0,0.14288746]
[1732779716833,0.0008624,95627.0,95626.0,0.14188746]
[1732779717062,0.0018624,95627.0,95626.0,0.14288746]
[1732779717285,0.0018624,95627.0,95626.0,0.14388746]
[1732779717725,0.0018624,95627.0,95626.0,0.14288746]
[1732779718169,0.0018624,95627.0,95626.0,0.14388746]
[1732779718388,0.09646595,95636.0,95626.0,0.14388746]
[1732779718601,0.10284521,95635.0,95626.0,0.14388746]
[1732779718826,0.10284521,95635.0,95626.0,0.1328236]
[1732779719059,0.10284521,95635.0,95626.0,0.1318236]
[1732779719284,0.10284521,95635.0,95627.0,0.01005088]
[1732779720168,0.15,95634.0,95627.0,0.01005088]
[1732779720421,0.02134273,95628.0,95627.0,0.01005088]
[1732779720646,0.12418794,95628.0,95626.0,0.0027236]
[1732779720894,0.25284521,95627.0,95626.0,0.0027236]
[1732779721120,0.25284521,95627.0,95626.0,0.0017236]
[1732779721391,0.30366941,95627.0,95626.0,0.0017236]
[1732779721825,0.30366941,95627.0,95626.0,0.0796236]
[1732779721826,0.0508242,95627.0,95626.0,0.0796236]
[1732779722051,0.30366941,95627.0,95626.0,0.0796236]
[1732779722279,0.30366941,95627.0,95626.0,0.0017236]
[1732779722491,0.2764504,95627.0,95626.0,0.0017236]
[1732779722954,0.2834504,95627.0,95626.0,0.0017236]
[1732779723359,0.25690263,95627.0,95626.0,0.0017236]
[1732779723601,0.26890263,95627.0,95626.0,0.0017236]
[1732779724053,0.26390263,95627.0,95626.0,0.0017236]
[1732779724542,0.26790263,95627.0,95626.0,0.0017236]
[1732779724978,0.26390263,95627.0,95626.0,0.0017236]
[1732779725396,0.26090263,95627.0,95626.0,0.0017236]
[1732779725616,0.26790263,95627.0,95626.0,0.0017236]
[1732779726052,0.26090263,95627.0,95626.0,0.0017236]
[1732779726261,0.26690263,95627.0,95626.0,0.0017236]
[1732779726686,0.26090263,95627.0,95626.0,0.0017236]
[1732779726897,0.26690263,95627.0,95626.0,0.0017236]
[1732779727315,0.26290263,95627.0,95626.0,0.0017236]
[1732779727734,0.26690263,95627.0,95626.0,0.0017236]
[1732779728202,0.26290263,95627.0,95626.0,0.0017236]
[1732779728673,0.27290263,95627.0,95626.0,0.0017236]
[1732779728895,0.26090263,95627.0,95626.0,0.0017236]
[1732779729102,0.26690263,95627.0,95626.0,0.0017236]
[1732779729748,0.27290263,95627.0,95626.0,0.0017236]
[1732779730423,0.26090263,95627.0,95626.0,0.0017236]
[1732779731067,0.25690263,95627.0,95626.0,0.0017236]
[1732779731283,0.26090263,95627.0,95626.0,0.0017236]
[1732779731514,0.26090263,95627.0,95626.0,0.0823236]
[1732779731515,0.00805742,95627.0,95626.0,0.0823236]
[1732779731934,0.004,95627.0,95626.0,0.0823236]
[1732779732205,0.006,95627.0,95626.0,0.09013968]
[1732779732451,0.0008624,95635.0,95626.0,0.09013968]
[1732779732675,0.003,95627.0,95626.0,0.0823236]
[1732779732897,0.008,95627.0,95626.0,0.09013936]
[1732779733341,0.002,95627.0,95626.0,0.09113936]
[1732779733768,0.10370761,95635.0,95626.0,0.09013936]
[1732779733983,0.10370761,95635.0,95627.0,0.00781576]
[1732779734212,0.00357286,95634.0,95628.0,0.00781576]
[1732779734437,0.00357286,95634.0,95626.0,0.0843236]
[1732779735371,0.00357286,95634.0,95626.0,0.0823236]
[1732779736261,0.00457286,95634.0,95627.0,0.209145]
[1732779736475,0.00457286,95634.0,95633.0,0.104566]
[1732779737370,0.00557286,95634.0,95633.0,0.104566]
[1732779737799,0.00457286,95634.0,95633.0,0.104566]
[1732779738284,0.00357286,95634.0,95633.0,0.105566]
[1732779738498,0.0008624,95635.0,95634.0,0.104565]
[1732779739859,0.0008624,95635.0,95634.0,0.11807242]
[1732779740093,0.0008624,95635.0,95634.0,0.16702312]
[1732779740317,0.0008624,95635.0,95634.0,0.2332157]
[1732779740564,0.0008624,95635.0,95634.0,0.24387082]
[1732779741544,0.0008624,95635.0,95634.0,0.24287082]
[1732779741761,0.0008624,95635.0,95634.0,0.72962315]
[1732779741999,0.0008624,95635.0,95634.0,0.72860527]
[1732779742219,0.0008624,95635.0,95634.0,0.59125489]
[1732779742399,0.0008624,95635.0,95634.0,0.24687082]
[1732779742639,0.0008624,95635.0,95634.0,0.24387082]
[1732779742850,0.0018624,95635.0,95634.0,0.25087082]
[1732779743125,0.0018624,95635.0,95634.0,0.27087082]
[1732779743366,0.0018624,95635.0,95634.0,0.39671603]
[1732779743579,0.0008623,95636.0,95635.0,0.297564]
[1732779743798,0.0008623,95636.0,95635.0,0.88113788]
[1732779744261,0.0008623,95636.0,95635.0,0.88112964]
[1732779744738,0.0008623,95636.0,95635.0,1.11468117]
[1732779744959,0.0008623,95636.0,95635.0,0.89412964]
[1732779744960,0.0028623,95636.0,95635.0,0.89412964]
[1732779745428,0.0028623,95636.0,95635.0,0.54887666]
[1732779745672,0.0028623,95636.0,95635.0,0.67655662]
[1732779745904,0.0028623,95636.0,95635.0,0.89365127]
[1732779746548,0.0028623,95636.0,95635.0,1.02115944]
[1732779746765,0.0028623,95636.0,95635.0,0.88109872]
[1732779747493,0.0028623,95636.0,95635.0,0.67644269]
[1732779748160,0.0028623,95636.0,95635.0,1.02104841]
[1732779748377,0.0003102,95667.0,95660.0,0.104535]
[1732779748586,0.0003102,95667.0,95661.0,0.10638508]
[1732779748802,0.00363246,95666.0,95661.0,0.00185008]
[1732779749011,0.0003102,95667.0,95661.0,0.00185008]
[1732779749466,0.0003102,95667.0,95659.0,0.07985008]
[1732779749677,0.00363246,95666.0,95659.0,0.078]
[1732779749893,0.00363246,95666.0,95659.0,0.18438709]
[1732779750113,0.00363246,95666.0,95660.0,0.00185009]
[1732779750586,0.00363246,95666.0,95659.0,0.078]
[1732779750587,0.00363246,95666.0,95659.0,0.07985009]
[1732779751096,0.00363246,95666.0,95659.0,0.00185009]
[1732779751320,0.00363246,95666.0,95654.0,0.287085]
[1732779751533,0.00363246,95666.0,95654.0,0.078]
[1732779751772,0.09921771,95664.0,95647.0,0.078]
[1732779752004,0.0003102,95667.0,95647.0,0.078]
[1732779752005,0.313612,95659.0,95647.0,0.07985019]
[1732779752244,0.313612,95659.0,95647.0,0.00185019]
[1732779752451,0.104541,95656.0,95647.0,0.00185019]
[1732779752679,0.209078,95658.0,95647.0,0.00185019]
[1732779752680,0.00358133,95658.0,95647.0,0.00185019]
[1732779752907,0.104544,95654.0,95647.0,0.00185019]
[1732779753125,0.09921771,95660.0,95644.0,0.00185038]
[1732779753386,0.00358133,95653.0,95645.0,0.00185035]
[1732779753602,0.104543,95655.0,95646.0,0.00185035]
[1732779753814,0.00358133,95652.0,95646.0,0.00185035]
[1732779754040,0.104543,95654.0,95646.0,0.00185035]
[1732779754264,0.00358133,95651.0,95647.0,0.003]
[1732779754490,0.00358133,95653.0,95647.0,0.003]
[1732779754709,0.10455,95648.0,95647.0,0.003]
[1732779754977,0.104565,95635.0,95629.0,0.0778]
[1732779755195,0.41649821,95647.0,95646.0,0.003]
[1732779755430,0.41649821,95647.0,95646.0,0.009]
[1732779755648,0.41649821,95647.0,95646.0,0.003]
[1732779755877,0.20739621,95647.0,95646.0,0.003]
[1732779756570,0.104557,95642.0,95632.0,0.00185062]
[1732779756780,0.20377471,95642.0,95632.0,0.00185062]
[1732779757634,0.09921771,95642.0,95632.0,0.00185062]
[1732779757858,0.09921771,95642.0,95632.0,0.104567]
[1732779758079,0.09921771,95642.0,95633.0,0.104565]
[1732779758297,0.104552,95646.0,95633.0,0.21098264]
[1732779758554,0.10284521,95645.0,95637.0,0.104561]
[1732779758997,0.10284521,95645.0,95632.0,0.004]
[1732779759212,0.20739821,95645.0,95633.0,0.10641662]
[1732779759440,0.10284521,95645.0,95633.0,0.21098262]
[1732779759655,0.10810156,95644.0,95633.0,0.00185062]
[1732779759868,0.09921771,95643.0,95634.0,0.104564]
[1732779760079,0.09921771,95643.0,95633.0,0.00185062]
[1732779760290,0.10284521,95645.0,95638.0,0.10456]
[1732779760516,0.00354756,95642.0,95633.0,0.002]
[1732779760756,0.20377371,95643.0,95633.0,0.00285062]
[1732779760964,0.20377371,95643.0,95633.0,0.10641662]
[1732779761191,0.00354756,95642.0,95634.0,0.002]
[1732779761376,0.00354756,95642.0,95634.0,0.001]
[1732779761623,0.00354756,95642.0,95638.0,0.001]
[1732779762066,0.00354756,95642.0,95634.0,0.001]
[1732779762495,0.00354756,95642.0,95633.0,0.10641662]
[1732779762740,0.00354756,95642.0,95634.0,0.104565]
[1732779763178,0.104555,95643.0,95632.0,0.10814182]
[1732779763418,0.00354756,95641.0,95633.0,0.00385063]
[1732779763647,0.098555,95643.0,95633.0,0.10641563]
[1732779763869,0.00354756,95640.0,95633.0,0.10641563]
[1732779764077,0.098555,95643.0,95634.0,0.003]
[1732779764300,0.10284521,95645.0,95633.0,0.00285063]
[1732779764301,0.00354756,95639.0,95633.0,0.00285063]
[1732779764754,0.31195221,95645.0,95633.0,0.00285063]
[1732779764755,0.00354756,95638.0,95633.0,0.00285063]
[1732779764968,0.104556,95643.0,95633.0,0.10641663]
[1732779765199,0.00354756,95637.0,95633.0,0.11241663]
[1732779765426,0.20377371,95643.0,95633.0,0.11241663]
[1732779765638,0.0035398,95636.0,95635.0,0.104564]
[1732779765870,0.10284521,95645.0,95636.0,0.104562]
[1732779766162,0.104554,95644.0,95634.0,0.103064]
[1732779766386,0.0035398,95644.0,95635.0,0.104563]
[1732779766877,0.1080938,95644.0,95633.0,0.11241663]
[1732779767108,0.0035398,95644.0,95635.0,0.104563]
[1732779767326,0.0035398,95644.0,95636.0,0.001]
[1732779767757,0.0035398,95644.0,95635.0,0.107563]
[1732779767966,0.0035398,95644.0,95635.0,0.109563]
[1732779768187,0.0035398,95644.0,95635.0,0.107563]
[1732779768403,0.0035398,95644.0,95638.0,0.10456]
[1732779768651,0.0035398,95644.0,95639.0,0.00185049]
[1732779768865,0.09921771,95650.0,95636.0,0.210124]
[1732779768866,0.09921771,95650.0,95640.0,0.00185049]
[1732779769096,0.0035398,95643.0,95641.0,0.0778]
[1732779769315,0.09921771,95650.0,95641.0,0.0778]
[1732779769531,0.00353579,95649.0,95641.0,0.0778]
[1732779769755,0.09921771,95650.0,95641.0,0.0778]
[1732779770009,0.00353579,95648.0,95641.0,0.0778]
[1732779770222,0.09921771,95650.0,95641.0,0.0778]
[1732779770435,0.00353579,95647.0,95641.0,0.0808]
[1732779770659,0.09921771,95650.0,95641.0,0.0778]
[1732779770873,0.00353579,95646.0,95641.0,0.0778]
[1732779771092,0.10021771,95650.0,95641.0,0.188357]
[1732779771306,0.09921771,95650.0,95642.0,0.104556]
[1732779771731,0.001,95647.0,95644.0,0.104553]
[1732779772173,0.001,95647.0,95641.0,0.0888]
[1732779772174,0.001,95647.0,95642.0,0.104556]
[1732779772400,0.001,95647.0,95641.0,0.0858]
[1732779772669,0.0008624,95644.0,95642.0,0.002]
[1732779773761,0.00353579,95643.0,95642.0,0.002]
[1732779773990,0.0008624,95644.0,95642.0,0.002]
[1732779773991,0.0018624,95644.0,95642.0,0.009]
[1732779774443,0.00353579,95643.0,95642.0,0.009]
[1732779774658,0.00353579,95643.0,95640.0,0.00185049]
[1732779774873,0.0008624,95644.0,95636.0,0.104562]
[1732779775082,0.001,95643.0,95642.0,0.013]
[1732779775306,0.105555,95643.0,95642.0,0.013]
[1732779775538,0.105555,95643.0,95642.0,0.009]
[1732779776428,0.104557,95641.0,95640.0,0.004]
[1732779777363,0.104565,95634.0,95633.0,0.0017248]
[1732779777595,0.33691021,95634.0,95633.0,0.0017248]
[1732779778293,0.33091021,95634.0,95633.0,0.0017248]
[1732779778506,0.48091021,95634.0,95633.0,0.0017248]
[1732779779243,0.48191021,95634.0,95633.0,0.0017248]